fUSD/lending_fUSD_20260402
["ID","MTS","AMOUNT","RATE_DAILY","PERIOD"]
[419279730,1775104259097,-151.0,0.00016,2]
[419279731,1775104259300,-270.74246,0.00016,2]
[419279732,1775104259339,-270.74246,0.00016,2]
[419279733,1775104259413,-270.74246,0.00016,2]
[419279734,1775104259455,-270.74246,0.00016,2]
[419279735,1775104259478,-151.0,0.00016,2]
[419279736,1775104259544,-151.0,0.00016,2]
[419279737,1775104259706,-479.50353,0.00016,2]
[419279738,1775104259744,-479.50353,0.00016,2]
[419279739,1775104259778,-479.50353,0.00016,2]
[419279740,1775104259845,-151.0,0.00016,2]
[419279742,1775104259886,-151.0,0.00016,2]
[419279743,1775104259971,-885.509535,0.00016,2]
[419279744,1775104260002,-190.866991,0.00016,2]
[419279745,1775104260020,-847.02558588,0.00016,2]
[419279746,1775104260175,-38.48394912,0.00016,2]
[419279747,1775104260192,-885.509535,0.00016,2]
[419279748,1775104260275,-885.509535,0.00016,2]
[419279749,1775104260300,-151.0,0.00016,2]
[419279750,1775104260316,-2000.0,0.00016,2]
[419279751,1775104260349,-330.68101849,0.00016,2]
[419279752,1775104260391,-500.0,0.00016073,2]
[419279753,1775104260475,-500.0,0.00016073,2]
[419279754,1775104260566,-512.83084178,0.00016073,2]
[419279755,1775104260623,-500.0,0.00016073,2]
[419279756,1775104260654,-500.0,0.00016073,2]
[419279757,1775104260707,-502.51609443,0.00016073,2]
[419279758,1775104260744,-500.0,0.00016073,2]
[419279759,1775104260813,-500.0,0.00016073,2]
[419279760,1775104260900,-500.0,0.00016073,2]
[419279761,1775104261049,-500.0,0.00016073,2]
[419279762,1775104261111,-168.0,0.00016081,2]
[419279763,1775104261197,-167.47277636,0.00016087,2]
[419279764,1775104261218,-150.269,0.00016087,2]
[419279765,1775104261238,-284.7985076,0.00016087,2]
[419279766,1775104261464,-500.0,0.0001523,2]
[419279767,1775104261506,-978.2014924,0.00016087,2]
[419279768,1775104261525,-1217.0,0.00016087,2]
[419279769,1775104261550,-158.06713205,0.00016087,2]
[419279770,1775104261760,-766.93286795,0.00016087,2]
[419279771,1775104261784,-151.0,0.00016087,2]
[419279772,1775104261836,-151.0,0.00016087,2]
[419279773,1775104261896,-270.74246,0.00016087,2]
[419279774,1775104261931,-270.74246,0.00016087,2]
[419279775,1775104262005,-270.74246,0.00016087,2]
[419279776,1775104262058,-270.74246,0.00016087,2]
[419279777,1775104262086,-151.0,0.00016087,2]
[419279778,1775104262318,-151.0,0.00016087,2]
[419279779,1775104262544,-151.0,0.00016087,2]
[419279780,1775104262585,-51.06124337,0.00016087,2]
[419279781,1775104262624,-99.93875663,0.00016087,2]
[419279782,1775104262655,-885.509535,0.00016087,2]
[419279783,1775104262761,-885.509535,0.00016087,2]
[419279784,1775104262794,-885.509535,0.00016087,2]
[419279785,1775104262816,-885.509535,0.00016087,2]
[419279786,1775104262891,-2469.0,0.00016087,2]
[419279787,1775104262947,-1346.0,0.00016087,2]
[419279788,1775104263003,-292.078481,0.00016087,2]
[419279789,1775104263039,-3451.83002558,0.00016087,2]
[419279790,1775104263068,-68.16997442,0.00016087,2]
[419279791,1775104263164,-2000.0,0.000161,2]
[419279792,1775104263221,-1600.0,0.00016129,2]
[419279793,1775104263270,-4223.86522458,0.00016149,2]
[419279794,1775104263370,-635.13477542,0.00016149,2]
[419279795,1775104263433,-277.998644,0.0001615,2]
[419279796,1775104263464,-200.0,0.0001616,2]
[419279797,1775104263543,-500.0,0.00016164,2]
[419279798,1775104263589,-10.17152603,0.00016164,2]
[419279799,1775104263665,-489.82847397,0.00016164,2]
[419279800,1775104263697,-174.03816358,0.00016164,2]
[419279801,1775104263745,-325.96183642,0.00016164,2]
[419279802,1775104263786,-500.0,0.00016164,2]
[419279803,1775104263855,-500.0,0.00016164,2]
[419279804,1775104263927,-500.0,0.00016164,2]
[419279805,1775104264026,-500.0,0.00016164,2]
[419279806,1775104264157,-500.0,0.00016164,2]
[419279807,1775104264242,-150.0,0.00016164,2]
[419279808,1775104264290,-150.0,0.00016164,2]
[419279809,1775104264335,-200.0,0.00016164,2]
[419279810,1775104264461,-500.0,0.00016164,2]
[419279811,1775104264509,-508.18157675,0.00016164,2]
[419279812,1775104264569,-168.52027501,0.00016164,2]
[419279813,1775104264645,-829.525,0.00016087,2]
[419279814,1775104264665,-262.6,0.00016087,2]
[419279832,1775104266424,-2500.0,0.0001561,2]
[419279833,1775104266475,-300.0,0.00015734,2]
[419279834,1775104266510,-2500.0,0.00015859,2]
[419279835,1775104266540,-2500.0,0.00015859,2]
[419279836,1775104266586,-2500.0,0.00015859,2]
[419279837,1775104266608,-300.0,0.00015926,2]
[419279838,1775104266631,-300.0,0.00015926,2]
[419279839,1775104266678,-300.0,0.00015926,2]
[419279840,1775104266722,-300.0,0.00015999,2]
[419279841,1775104266762,-3768.0,0.00016075,2]
[419279842,1775104266837,-624.691,0.00016075,2]
[419279843,1775104266951,-415.0,0.00016075,2]
[419279844,1775104267024,-4923.875,0.00016087,2]
[419279845,1775104267046,-331.47972499,0.00016164,2]
[419279846,1775104267175,-500.0,0.00016164,2]
[419279847,1775104267348,-636.98972559,0.00016164,2]
[419279848,1775104267377,-150.0,0.00016164,2]
[419279849,1775104267421,-433.0,0.00016186,2]
[419279850,1775104267477,-2000.0,0.000162,2]
[419279851,1775104267495,-1579.0,0.00016233,5]
[419279852,1775104267533,-4859.0,0.00016234,2]
[419279853,1775104267881,-293.13,0.00016284,2]
[419279854,1775104267933,-168.9201,0.000163,7]
[419279855,1775104267960,-2000.0,0.000163,2]
[419279856,1775104267988,-1696.98,0.00016307,2]
[419279857,1775104268033,-168.0,0.00016308,2]
[419279858,1775104268086,-160.89568026,0.00016333,2]
[419279859,1775104268130,-152.0,0.00016381,3]
[419279860,1775104268147,-152.0,0.00016381,3]
[419279861,1775104268228,-501.0,0.000164,2]
[419279862,1775104268295,-160.0,0.0001643,2]
[419279863,1775104268330,-2500.0,0.00016438,2]
[419279864,1775104268415,-2500.0,0.00016438,2]
[419279865,1775104268457,-2500.0,0.00016438,2]
[419279866,1775104268488,-2500.0,0.00016438,2]
[419279867,1775104268572,-2500.0,0.00016438,2]
[419279868,1775104268683,-150.0,0.00016438,2]
[419279869,1775104268823,-157.42,0.00016438,2]
[419279870,1775104268902,-250.0,0.00016438,2]
[419279871,1775104269013,-151.0,0.00016438,2]
[419279872,1775104269098,-151.0,0.00016438,2]
[419279873,1775104269125,-151.0,0.00016438,2]
[419279874,1775104269154,-203.602131,0.00016438,2]
[419279875,1775104269176,-151.0,0.00016438,2]
[419279876,1775104269254,-151.0,0.00016438,2]
[419279877,1775104269301,-151.0,0.00016438,2]
[419279878,1775104269345,-151.0,0.00016438,2]
[419279879,1775104269396,-151.0,0.00016438,2]
[419279880,1775104269416,-151.0,0.00016438,2]
[419279881,1775104269497,-151.0,0.00016438,2]
[419279882,1775104269553,-151.0,0.00016438,2]
[419279883,1775104269642,-151.0,0.00016438,2]
[419279884,1775104269709,-151.0,0.00016438,2]
[419279885,1775104269913,-151.0,0.00016438,2]
[419279886,1775104269935,-151.0,0.00016438,2]
[419279887,1775104270174,-151.0,0.00016438,2]
[419279888,1775104270203,-151.0,0.00016438,2]
[419279889,1775104270229,-151.0,0.00016438,2]
[419279890,1775104270259,-151.0,0.00016438,2]
[419279891,1775104270305,-151.0,0.00016438,2]
[419279892,1775104270388,-151.0,0.00016438,2]
[419279893,1775104270427,-151.0,0.00016438,2]
[419279894,1775104270485,-151.0,0.00016438,2]
[419279895,1775104270526,-151.0,0.00016438,2]
[419279896,1775104270572,-156.702407,0.00016438,2]
[419279897,1775104270630,-151.0,0.00016438,2]
[419279898,1775104270664,-151.0,0.00016438,2]
[419279899,1775104270733,-151.0,0.00016438,2]
[419279900,1775104270799,-294.560932,0.00016438,2]
[419279901,1775104270816,-168.0,0.00016458,2]
[419279902,1775104270879,-161.0,0.00016463,3]
[419279903,1775104270904,-157.0,0.00016463,3]
[419279904,1775104270936,-168.0,0.00016498,2]
[419279905,1775104270958,-500.0,0.00016521,2]
[419279906,1775104270992,-2006.0,0.000166,2]
[419279907,1775104271072,-2000.0,0.00016614,2]
[419279908,1775104271170,-3287.0,0.00016614,2]
[419279909,1775104271248,-774.57240922,0.00016621,2]
[419279910,1775104271281,-1000.0,0.00016621,2]
[419279911,1775104271358,-808.85255404,0.00016621,2]
[419279912,1775104271439,-1000.0,0.00016621,2]
[419279913,1775104271485,-1000.0,0.00016621,2]
[419279914,1775104271516,-329.77078849,0.00016621,2]
[419279915,1775104271536,-2476.5575474,0.0001665,2]
[419279916,1775104272556,-300.0,0.0001665,2]
[419279917,1775104273140,-500.0,0.00015672,2]
[419279918,1775104273169,-1.48303233,0.0001665,2]
[419279919,1775104273357,-508.95942027,0.0001665,2]
[419279920,1775104273395,-457.360205,0.0001666,7]
[419279921,1775104273412,-431.770023,0.0001666,7]
[419279922,1775104273465,-293.87531,0.0001666,7]
[419279923,1775104273533,-287.491117,0.0001666,7]
[419279924,1775104273612,-227.975999,0.0001666,7]
[419279925,1775104273764,-293.13,0.00016672,2]
[419279926,1775104273796,-191.78,0.00016712,2]
[419279927,1775104273846,-1479.98695273,0.00016753,2]
[419279932,1775104538936,-183.26216,0.000135,2]
[419279942,1775105438654,-1018.7,0.00011796,2]
[419279943,1775105438668,-557.0,0.000135,2]
[419279945,1775105438680,-200.94561576,0.00013935,2]
[419279947,1775105438694,-300.0,0.00014807,2]
[419279948,1775105438708,-1200.0,0.00014807,2]
[419279949,1775105438722,-2019.11438424,0.00014808,2]
[419279950,1775105439511,-980.88561576,0.00014808,2]
[419279958,1775105439738,-2000.0,0.00014808,2]
[419279960,1775105439752,-185.44,0.00014844,2]
[419279961,1775105439765,-150.0,0.00014849,2]
[419279963,1775105439778,-300.0,0.0001485,2]
[419279965,1775105439792,-210.97,0.00014915,2]
[419279967,1775105439805,-415.4675,0.00015105,2]
[419279969,1775105439818,-1571.0,0.00015172,2]
[419279971,1775105439831,-2886.23688424,0.00015205,2]
[419279974,1775105439863,-1333.67814823,0.00015205,2]
[419279976,1775105439878,-460.25546525,0.00015205,2]
[419279977,1775105439896,-1868.16220097,0.00015205,2]
[419279978,1775105439912,-1820.78148222,0.00015205,2]
[419279979,1775105439928,-1494.94091286,0.00015205,2]
[419279980,1775105439960,-106.16490623,0.00015205,2]
[419279981,1775105439973,-150.0,0.00015252,2]
[419279982,1775105439986,-3148.39509377,0.00015252,2]
[419279983,1775105440002,-12456.53680623,0.00015252,2]
[419279984,1775105440014,-1006.91275265,0.00015266,2]
[419279997,1775105441541,-864.72350482,0.00015266,2]
[419279998,1775105441557,-2365.275,0.00015266,2]
[419279999,1775105441574,-1704.75162942,0.00015266,2]
[419280000,1775105441587,-806.24837058,0.00015273,2]
[419280001,1775105441602,-649.85970756,0.00015273,2]
[419280002,1775105441614,-150.0,0.000153,2]
[419280003,1775105441627,-170.68,0.00015352,2]
[419280004,1775105441640,-873.55029244,0.00015352,2]
[419280005,1775105441693,-1092.33970756,0.00015352,2]
[419280006,1775105441706,-500.0,0.00015352,2]
[419280007,1775105441719,-500.0,0.00015352,2]
[419280008,1775105441732,-500.0,0.00015366,2]
[419280009,1775105441744,-473.76,0.00015415,2]
[419280010,1775105441757,-473.76,0.0001559,2]
[419280011,1775105441770,-248.0,0.00015753,2]
[419280012,1775105441783,-473.76,0.00015766,2]
[419280013,1775105441795,-1500.0,0.000158,5]
[419280014,1775105441808,-152.0,0.00015811,3]
[419280015,1775105441820,-1571.0,0.00015842,2]
[419280016,1775105441833,-320.0,0.00015842,2]
[419280017,1775105441845,-168.0,0.00015873,2]
[419280018,1775105441858,-500.0,0.00015899,2]
[419280019,1775105441870,-1771.6473636,0.000159,5]
[419280020,1775105441886,-562.49739732,0.000159,5]
[419280021,1775105441906,-300.0,0.000159,5]
[419280022,1775105441977,-465.85523908,0.000159,5]
[419280023,1775105441990,-743.13,0.0001594,2]
[419280024,1775105442004,-473.7693148,0.00015942,2]
[419280025,1775105442018,-255.0,0.00015978,2]
[419280026,1775105442033,-172.03072018,0.00016,2]
[419280027,1775105442118,-245.34318849,0.00016,2]
[419280028,1775105442132,-75.07454045,0.00016096,4]
[419280077,1775105444415,-76.92545955,0.00016096,4]
[419280078,1775105444428,-1241.50857792,0.000161,2]
[419280082,1775105446895,-495.88532157,0.000161,2]
[419280083,1775105447079,-3003.82083986,0.000161,2]
[419280084,1775105447092,-387.0811846,0.000161,2]
[419280085,1775105447106,-1046.0,0.00016163,2]
[419280086,1775105447119,-621.0,0.00016163,2]
[419280087,1775105447131,-3520.0,0.00016163,2]
[419280088,1775105447145,-1346.0,0.00016163,2]
[419280089,1775105447158,-1263.0,0.00016163,2]
[419280090,1775105447171,-415.0,0.00016163,2]
[419280091,1775105447184,-2469.0,0.00016163,2]
[419280092,1775105447197,-3768.0,0.00016163,2]
[419280093,1775105447210,-150.0,0.00016164,2]
[419280094,1775105447224,-150.0,0.00016164,2]
[419280095,1775105447241,-150.0,0.00016164,2]
[419280096,1775105447255,-150.0,0.00016164,2]
[419280097,1775105447268,-150.0,0.00016164,2]
[419280098,1775105447281,-240.33979428,0.00016164,2]
[419280099,1775105447294,-176.0,0.00016172,2]
[419280100,1775105447306,-401.0,0.00016172,2]
[419280101,1775105447320,-518.0,0.00016172,2]
[419280102,1775105447332,-1682.0,0.00016172,2]
[419280103,1775105447350,-488.0,0.00016172,2]
[419280104,1775105447364,-232.0,0.00016172,2]
[419280105,1775105447378,-3000.0,0.00016178,2]
[419280106,1775105447392,-2000.0,0.00016178,2]
[419280107,1775105447406,-420.0,0.00016209,2]
[419280108,1775105447419,-3240.0,0.00016223,2]
[419280109,1775105447432,-5000.0,0.00016238,2]
[419280110,1775105447446,-159.37965767,0.00016273,2]
[419280111,1775105447459,-259.80018529,0.00016273,2]
[419280112,1775105447475,-1373.53704558,0.00016273,2]
[419280113,1775105447490,-480.0,0.00016288,2]
[419280114,1775105447503,-207.06035756,0.000163,2]
[419280115,1775105447516,-500.0,0.00016337,2]
[419280116,1775105447530,-225.19729295,0.00016337,2]
[419280117,1775105447543,-500.0,0.00016337,2]
[419280118,1775105447556,-302.33159749,0.00016337,2]
[419280119,1775105447570,-463.98599543,0.00016337,2]
[419280120,1775105447583,-5463.0,0.00016338,5]
[419280121,1775105447596,-4378.0,0.00016338,5]
[419280122,1775105447610,-99132.40591591,0.00016338,2]
[419280123,1775105447639,-993.945,0.00016338,2]
[419280124,1775105448304,-3955.324,0.00016338,2]
[419280136,1775106529377,157.88,7.063e-05,2]
[419280137,1775106529569,157.88,8.072e-05,2]
[419280138,1775106582267,737.88,7.868e-05,2]
[419280141,1775106609464,11707.99936287,9.5e-05,3]
[419280142,1775106609490,100000.0,9.5e-05,3]
[419280143,1775106609517,6262.81930024,9.5e-05,3]
[419280148,1775106631629,-157.88,9.081e-05,2]
[419280149,1775106631640,-157.88,0.0001009,2]
[419280150,1775106631650,-157.88,0.00011099,2]
[419280151,1775106631660,-500.0,0.00011696,2]
[419280152,1775106631669,-1361.68869402,0.000118,5]
[419280153,1775106631682,-310.55827694,0.000118,5]
[419280154,1775106631693,-334.02485,0.000118,5]
[419280155,1775106631704,-130.72817904,0.000118,5]
[419280156,1775106631714,-157.88,0.00012109,2]
[419280157,1775106631723,-180.58,0.00012818,2]
[419280158,1775106631732,-42.22182096,0.00013118,2]
[419280159,1775106631879,-115.65817904,0.00013118,2]
[419280160,1775106631889,-385.89381881,0.000135,2]
[419280161,1775106631900,-171.10618119,0.000135,2]
[419280162,1775106631910,-166.66,0.00014009,2]
[419280163,1775106631920,-1.98642495,0.00014127,2]
[419280164,1775106631931,-155.89357505,0.00014127,2]
[419280165,1775106631941,-161.11,0.00014161,2]
[419280166,1775106631950,-150.0,0.0001417,2]
[419280168,1775106631959,-1186.01,0.00014195,2]
[419280169,1775106631968,-801.14,0.00014273,2]
[419280170,1775106631977,-166.66,0.00014304,2]
[419280171,1775106631986,-1200.0,0.00014352,2]
[419280172,1775106631995,-2000.0,0.00014353,2]
[419280173,1775106632005,-166.66,0.00014599,2]
[419280175,1775106632014,-300.0,0.00014807,2]
[419280177,1775106632023,-158.0,0.00014807,2]
[419280178,1775106632035,-1700.0,0.00014808,2]
[419280179,1775106632044,-166.66,0.00014894,2]
[419280180,1775106632054,-1398.06449279,0.00014899,2]
[419280181,1775106632064,-502.29490405,0.00014973,2]
[419280182,1775106632073,-120.30585549,0.00014973,2]
[419280186,1775106632323,-380.46135152,0.00014973,2]
[419280187,1775106632334,-335.0579308,0.00014973,2]
[419280188,1775106632346,-1000.0,0.00014994,2]
[419280189,1775106632355,-134.48071768,0.00014995,2]
[419280190,1775106632390,-867.29465335,0.00014995,2]
[419280194,1775106640278,-500.0,0.00014994,2]
[419280195,1775106640289,-157.63810506,0.00014994,2]
[419280196,1775106640300,-174.7901968,0.00014994,2]
[419280197,1775106640311,-561.63211825,0.00014994,2]
[419280198,1775106640321,-419.71014065,0.00014994,2]
[419280199,1775106640331,-1314.11513322,0.00014995,2]
[419280200,1775106640748,-662.93,0.00014995,2]
[419280201,1775106640761,-9284.02007883,0.00014995,2]
[419280277,1775106643035,-1733.32602545,0.00014995,2]
[419280278,1775106643048,-1656.91,0.00014995,2]
[419280279,1775106643077,-646108.52069147,0.00014995,2]
[419280280,1775106643087,-300.0,0.00014999,2]
[419280281,1775106643096,-150.0,0.00015,2]
[419280282,1775106643106,-1572.712,0.00015,2]
[419280283,1775106643116,-348.2695,0.00015005,2]
[419280284,1775106643125,-9778.8139,0.00015005,2]
[419280285,1775106643135,-170997.1785,0.00015005,2]
[419280286,1775106643144,-300.0,0.00015072,2]
[419280287,1775106643154,-6036.51337583,0.00015073,2]
[419280288,1775106643163,-3000.0,0.00015082,2]
[419280289,1775106643173,-500.0,0.00015096,2]
[419280290,1775106643182,-500.0,0.00015096,2]
[419280291,1775106643193,-500.0,0.00015096,2]
[419280292,1775106643203,-520.4574385,0.00015096,2]
[419280293,1775106643212,-508.65862639,0.00015104,2]
[419280294,1775106643221,-13114.90387506,0.00015104,2]
[419280295,1775106643231,-500.0,0.00015104,2]
[419280296,1775106643241,-445.51075129,0.00015104,2]
[419280297,1775106643250,-500.0,0.00015104,2]
[419280298,1775106643260,-491.0,0.00015104,2]
[419280299,1775106643271,-150.6474,0.00015104,2]
[419280300,1775106643281,-500.0,0.00015173,2]
[419280301,1775106643290,-500.2058628,0.00015173,2]
[419280302,1775106643300,-500.44811231,0.00015173,2]
[419280303,1775106643309,-500.53158841,0.00015173,2]
[419280304,1775106643318,-501.1899069,0.00015173,2]
[419280305,1775106643327,-502.29127134,0.00015173,2]
[419280306,1775106643337,-500.47003133,0.00015173,2]
[419280307,1775106643346,-164.35655208,0.00015173,2]
[419280308,1775106643356,-501.90683054,0.00015173,2]
[419280309,1775106643366,-501.67855026,0.00015173,2]
[419280310,1775106643376,-500.68484421,0.00015173,2]
[419280311,1775106643386,-166.66,0.00015189,2]
[419280312,1775106643395,-2469.0,0.00015371,2]
[419280313,1775106643405,-3768.0,0.00015371,2]
[419280314,1775106643415,-6016.0,0.00015371,2]
[419280315,1775106643425,-166.66,0.00015483,2]
[419280316,1775106643435,-1500.0,0.00015493,2]
[419280317,1775106643445,-176.77,0.0001552,2]
[419280318,1775106643454,-219.43030367,0.00015524,2]
[419280319,1775106643464,-156.77790773,0.00015528,2]
[419280320,1775106643474,-200.0,0.00015546,2]
[419280321,1775106643484,-276.38435266,0.00015564,2]
[419280322,1775106643493,-200.0,0.00015658,2]
[419280323,1775106643503,-5000.0,0.000157,2]
[419280324,1775106643513,-175.92048466,0.00015713,2]
[419280325,1775106643523,-173.20012352,0.00015713,2]
[419280326,1775106643533,-500.0,0.00015773,2]
[419280327,1775106643543,-225.42759078,0.00015773,2]
[419280328,1775106643552,-510.95406537,0.00015773,2]
[419280329,1775106643562,-181.83603731,0.00015773,2]
[419280330,1775106643571,-500.0,0.00015773,2]
[419280331,1775106643580,-500.0,0.00015773,2]
[419280332,1775106643589,-500.0,0.00015773,2]
[419280333,1775106643599,-629.87283673,0.00015773,2]
[419280334,1775106643608,-404.0,0.00015774,2]
[419280335,1775106643618,-304.0,0.00015787,2]
[419280336,1775106643628,-223.33620162,0.0001579,2]
[419280337,1775106643637,-1700.0,0.000158,5]
[419280338,1775106643646,-404.0,0.00015813,2]
[419280339,1775106643656,-404.0,0.00015866,2]
[419280340,1775106643665,-304.17045416,0.00015871,2]
[419280341,1775106643675,-500.0,0.0001589,2]
[419280342,1775106643683,-519.17533645,0.0001589,2]
[419280343,1775106643692,-684.19,0.0001589,2]
[419280344,1775106643702,-3500.0,0.000159,5]
[419280345,1775106643712,-213.02877868,0.000159,2]
[419280346,1775106643721,-400.0,0.0001597,2]
[419280347,1775106643731,-400.0,0.0001597,2]
[419280348,1775106643742,-421.74460076,0.0001597,2]
[419280349,1775106643752,-141432.18082576,0.00016,2]
[419280350,1775106643761,-162.445476,0.00016,2]
[419280351,1775106643771,-162.445476,0.00016,2]
[419280352,1775106643780,-162.445476,0.00016,2]
[419280353,1775106643790,-162.445476,0.00016,2]
[419280354,1775106643799,-577.911486,0.00016,2]
[419280355,1775106643809,-577.911486,0.00016,2]
[419280356,1775106643818,-577.911486,0.00016,2]
[419280357,1775106643828,-577.911486,0.00016,2]
[419280358,1775106643838,-151.0,0.00016,2]
[419280359,1775106643847,-151.0,0.00016,2]
[419280360,1775106643857,-4543.81158716,0.00016,2]
[419280361,1775106643870,-10098.5710867,0.00016,2]
[419280362,1775106644023,-1228.83271847,0.00016,2]
[419280363,1775106644047,-283.2487028,0.00016,2]
[419280365,1775106645778,-251.53,8.753e-05,2]
[419280366,1775106645794,-1408.345,0.00016,2]
[419280367,1775106645833,-331.57679474,0.00016,2]
[419280391,1775107831969,-250.0,0.00013,2]
[419280392,1775107831979,-550.0,0.000135,2]
[419280393,1775107831988,-883.21,0.00013972,2]
[419280394,1775107831997,-304.0,0.00014051,2]
[419280395,1775107832007,-4527.91,0.00014052,2]
[419280396,1775107832016,-300.0,0.00014299,2]
[419280397,1775107832025,-300.0,0.000143,2]
[419280398,1775107832034,-2500.0,0.000143,2]
[419280399,1775107832044,-2500.0,0.000143,2]
[419280400,1775107832054,-300.0,0.000143,2]
[419280401,1775107832065,-2500.0,0.000143,2]
[419280402,1775107832075,-2500.0,0.000143,2]
[419280403,1775107832085,-150.0,0.000145,2]
[419280404,1775107832095,-167.24,0.00014518,2]
[419280405,1775107832105,-2806.0,0.00014551,2]
[419280406,1775107832115,-164.68,0.00014649,2]
[419280407,1775107832124,-150.0,0.00014794,2]
[419280408,1775107832133,-153.37386469,0.00014795,2]
[419280409,1775107832142,-173.20012352,0.00014795,2]
[419280410,1775107832151,-175.92048466,0.00014795,2]
[419280411,1775107832161,-8080.80861018,0.00014795,2]
[419280412,1775107832171,-2160.04836295,0.00014795,2]
[419280413,1775107832180,-260.98579116,0.00014795,2]
[419280414,1775107832189,-1000.0,0.00014795,2]
[419280415,1775107832198,-3474.3649,0.00014795,2]
[419280416,1775107832207,-348.2695,0.00014795,2]
[419280417,1775107832216,-9778.8139,0.00014795,2]
[419280418,1775107832226,-2500.0,0.00014795,2]
[419280419,1775107832234,-2000.0,0.000148,5]
[419280421,1775107832243,-1500.0,0.00014808,2]
[419280423,1775107832252,-500.53158841,0.00014873,2]
[419280425,1775107832261,-500.2058628,0.00014873,2]
[419280427,1775107832270,-502.29127134,0.00014873,2]
[419280428,1775107832280,-500.44811231,0.00014873,2]
[419280430,1775107832289,-500.0,0.00014873,2]
[419280432,1775107832298,-501.1899069,0.00014873,2]
[419280434,1775107832307,-500.52022278,0.00014873,2]
[419280436,1775107832316,-500.68484421,0.00014873,2]
[419280438,1775107832325,-501.67855026,0.00014873,2]
[419280440,1775107832334,-500.0,0.00014873,2]
[419280442,1775107832343,-500.47003133,0.00014873,2]
[419280443,1775107832353,-501.90683054,0.00014873,2]
[419280444,1775107832362,-164.35655208,0.00014873,2]
[419280445,1775107832373,-1853.141,0.00014885,2]
[419280446,1775107832384,-500.0,0.00014886,2]
[419280447,1775107832393,-500.0,0.00014886,2]
[419280448,1775107832403,-500.0,0.00014886,2]
[419280449,1775107832413,-520.4574385,0.00014886,2]
[419280450,1775107832423,-508.65862639,0.00014894,2]
[419280451,1775107832432,-500.0,0.00014894,2]
[419280452,1775107832758,-445.51075129,0.00014894,2]
[419280453,1775107832768,-500.0,0.00014894,2]
[419280454,1775107832777,-491.0,0.00014894,2]
[419280455,1775107832786,-1090.37665391,0.00014894,5]
[419280456,1775107832796,-500.0,0.00014894,2]
[419280457,1775107832804,-500.0,0.00014894,2]
[419280458,1775107832814,-500.0,0.00014894,2]
[419280459,1775107832823,-500.0,0.00014894,2]
[419280460,1775107832831,-500.0,0.00014894,2]
[419280461,1775107832842,-408.80395629,0.00014894,2]
[419280462,1775107832851,-600.16302572,0.00014894,2]
[419280463,1775107832860,-500.0,0.00014894,2]
[419280464,1775107832869,-500.0,0.00014894,2]
[419280465,1775107832878,-247.8598496,0.00014894,2]
[419280466,1775107832887,-150.6474,0.00014894,2]
[419280467,1775107832897,-65970.68832034,0.00014895,2]
[419280468,1775107832909,-2919.46419364,0.00014895,2]
[419280469,1775107832920,-7241.92299461,0.00014895,2]
[419280470,1775107832936,-2365.6467138,0.00014895,2]
[419280471,1775107832947,-2043.0551233,0.00014895,2]
[419280472,1775107832958,-1517.13268707,0.00014895,2]
[419280476,1775107837922,-28300.18714299,0.00014695,2]
[419280477,1775107838032,-6860.74483049,0.00014695,2]
[419280478,1775107838044,-3015.00009,0.00014695,2]
[419280479,1775107838055,-593.457277,0.00014695,2]
[419280480,1775107838067,-490.0,0.00014695,2]